fUST/lending_fUST_20240818
["ID","MTS","AMOUNT","RATE_DAILY","PERIOD"]
[335195727,1723971049891,-500.0,0.00018423,2]
[335195728,1723971049900,-733.37,0.00018423,2]
[335195729,1723971049910,-388.24660019,0.00018423,2]
[335195730,1723971049919,-3485.96,0.00018423,2]
[335195731,1723971049929,-2421.03,0.00018423,2]
[335195732,1723971049939,-500.0,0.00018423,2]
[335195733,1723971049948,-500.0,0.00018423,2]
[335195734,1723971049958,-999.13,0.00018423,2]
[335195735,1723971049968,-500.0,0.00018423,2]
[335195736,1723971049977,-500.0,0.00018423,2]
[335195737,1723971049987,-1288.02,0.00018423,2]
[335195738,1723971049996,-500.0,0.00018423,2]
[335195739,1723971050006,-500.0,0.00018423,2]
[335195740,1723971050015,-992.11,0.00018423,2]
[335195741,1723971050026,-500.0,0.00018423,2]
[335195742,1723971050036,-500.0,0.00018423,2]
[335195743,1723971050047,-500.0,0.00018423,2]
[335195744,1723971050056,-1098.87,0.00018423,2]
[335195745,1723971050066,-762.58,0.00018423,2]
[335195746,1723971050076,-502.26264093,0.00018423,2]
[335195747,1723971050086,-500.0,0.00018423,2]
[335195748,1723971050099,-500.0,0.00018423,2]
[335195749,1723971050109,-500.0,0.00018423,2]
[335195750,1723971050118,-543.53104022,0.00018423,2]
[335195751,1723971050132,-500.0,0.00018423,2]
[335195752,1723971050141,-500.0,0.00018423,2]
[335195753,1723971050152,-500.0,0.00018423,2]
[335195754,1723971050162,-1102.68,0.00018423,2]
[335195755,1723971050173,-500.0,0.00018423,2]
[335195756,1723971050184,-679.86,0.00018423,2]
[335195757,1723971050194,-500.0,0.00018423,2]
[335195758,1723971050204,-500.0,0.00018423,2]
[335195759,1723971050214,-500.0,0.00018423,2]
[335195760,1723971050224,-2307.18,0.00018423,2]
[335195761,1723971050233,-500.0,0.00018423,2]
[335195762,1723971050243,-946.44,0.00018423,2]
[335195763,1723971050253,-500.0,0.00018423,2]
[335195764,1723971050263,-524.49331253,0.00018423,2]
[335195765,1723971050274,-724.09,0.00018423,2]
[335195766,1723971050284,-757.94,0.00018423,2]
[335195767,1723971050294,-813.92,0.00018423,2]
[335195768,1723971050304,-819.97,0.00018423,2]
[335195769,1723971050315,-500.0,0.00018423,2]
[335195770,1723971050325,-151.0,0.00018431,2]
[335195771,1723971050334,-151.0,0.00018431,2]
[335195772,1723971050343,-302.60388788,0.00018433,2]
[335195773,1723971050354,-500.0,0.00018433,2]
[335195774,1723971050366,-501.88739602,0.00018433,2]
[335195775,1723971050375,-504.26190343,0.00018433,2]
[335195776,1723971050384,-500.0,0.00018433,2]
[335195777,1723971050395,-500.0,0.00018433,2]
[335195778,1723971050405,-500.0,0.00018433,2]
[335195779,1723971050416,-505.06143816,0.00018433,2]
[335195780,1723971050427,-500.0,0.00018433,2]
[335195781,1723971050438,-500.0,0.00018433,2]
[335195782,1723971050449,-500.0,0.00018433,2]
[335195783,1723971050459,-500.0,0.00018433,2]
[335195784,1723971050470,-500.0,0.00018433,2]
[335195785,1723971050482,-500.0,0.00018433,2]
[335195786,1723971050493,-500.0,0.00018433,2]
[335195787,1723971050502,-1157.94,0.00018433,2]
[335195788,1723971050513,-500.0,0.00018433,2]
[335195789,1723971050524,-504.28874436,0.00018433,2]
[335195790,1723971050534,-721.24,0.00018433,2]
[335195791,1723971050545,-500.0,0.00018433,2]
[335195792,1723971050556,-500.0,0.00018433,2]
[335195793,1723971050566,-549.38946756,0.00018433,2]
[335195794,1723971050575,-512.21931857,0.00018433,2]
[335195795,1723971050587,-732.53,0.00018433,2]
[335195796,1723971050598,-500.0,0.00018433,2]
[335195797,1723971050609,-636.84387548,0.00018433,2]
[335195798,1723971050620,-838.42,0.00018433,2]
[335195799,1723971050631,-500.0,0.00018433,2]
[335195800,1723971050640,-502.12097442,0.00018433,2]
[335195801,1723971050650,-500.0,0.00018433,2]
[335195802,1723971050660,-500.0,0.00018433,2]
[335195803,1723971050670,-500.0,0.00018433,2]
[335195804,1723971050679,-500.0,0.00018433,2]
[335195805,1723971050688,-1004.86,0.00018433,2]
[335195806,1723971050697,-500.0,0.00018433,2]
[335195807,1723971050707,-500.0,0.00018433,2]
[335195808,1723971050716,-562.7467592,0.00018433,2]
[335195809,1723971050728,-500.0,0.00018433,2]
[335195810,1723971050738,-528.17646954,0.00018433,2]
[335195811,1723971050750,-554.44,0.00018433,2]
[335195812,1723971050761,-500.0,0.00018433,2]
[335195813,1723971050773,-502.54179706,0.00018433,2]
[335195814,1723971050785,-501.5510116,0.00018433,2]
[335195815,1723971050796,-511.69770643,0.00018433,2]
[335195816,1723971050806,-500.0,0.00018433,2]
[335195817,1723971050818,-500.0,0.00018433,2]
[335195818,1723971050828,-511.91346403,0.00018433,2]
[335195819,1723971050840,-168.29605304,0.00018433,2]
[335195820,1723971050850,-500.0,0.00018433,2]
[335195821,1723971050862,-524.59272253,0.00018433,2]
[335195822,1723971050872,-500.0,0.00018433,2]
[335195823,1723971050882,-500.0,0.00018433,2]
[335195824,1723971050893,-500.0,0.00018433,2]
[335195825,1723971050903,-359.85401445,0.00018433,2]
[335195826,1723971050914,-500.0,0.00018433,2]
[335195827,1723971050925,-500.0,0.00018433,2]
[335195828,1723971050935,-283.61733,0.00018464,2]
[335195829,1723971050945,-283.61733,0.00018464,2]
[335195830,1723971050954,-200.0,0.00018473,2]
[335195831,1723971050963,-200.0,0.00018473,2]
[335195832,1723971050974,-200.0,0.00018473,2]
[335195833,1723971050985,-150.112233,0.000185,2]
[335195834,1723971050995,-150.112233,0.000185,2]
[335195835,1723971051005,-62066.96492136,0.00018541,2]
[335195836,1723971051331,-81234.73086373,0.00018541,2]
[335195837,1723971051739,-173.796305,0.00016394,2]
[335195838,1723971051750,-173.796305,0.00016439,2]
[335195839,1723971051761,-173.796305,0.00016484,2]
[335195840,1723971051773,-173.796305,0.00016529,2]
[335195841,1723971051782,-173.796305,0.00016574,2]
[335195842,1723971051792,-173.796305,0.00016619,2]
[335195843,1723971051801,-173.796305,0.00016664,2]
[335195844,1723971051811,-173.796305,0.00016709,2]
[335195845,1723971051820,-500.0,0.00017265,2]
[335195846,1723971051830,-1419.73704345,0.00017567,2]
[335195847,1723971052863,-173.796305,0.00016754,2]
[335195848,1723971052874,-173.796305,0.00016799,2]
[335195849,1723971052884,-173.796305,0.00016844,2]
[335195850,1723971052894,-173.796305,0.00016888,2]
[335195851,1723971052904,-173.796305,0.00016933,2]
[335195852,1723971052913,-173.796305,0.00016978,2]
[335195853,1723971053030,-173.796305,0.00017023,2]
[335195854,1723971053046,-173.796305,0.00017068,2]
[335195855,1723971053056,-173.796305,0.00017113,2]
[335195856,1723971053067,-173.796305,0.00017158,2]
[335195857,1723971053076,-173.796305,0.00017203,2]
[335195858,1723971053088,-180.57641137,0.00017265,2]
[335195859,1723971053099,-96.94170271,0.00017265,2]
[335195860,1723971077936,255.71,0.00010959,2]
[335195861,1723971088442,213.09,0.00010959,2]
[335195862,1723971097371,166.4,5.479e-05,2]
[335195863,1723971098932,177.58,0.00010959,2]
[335195864,1723971109402,887.92,0.00010959,2]
[335195865,1723971144961,306.35903895,0.00014519,2]
[335195866,1723971168046,55442.34208291,0.00013283,2]
[335195867,1723971220150,252.0753029,0.00014519,2]
[335195869,1723971274347,7011.29579993,0.00014245,2]
[335195870,1723971305210,309.67712516,0.00014519,2]
[335195871,1723971307526,154.71377951,0.00014519,2]
[335195872,1723971318765,199.08415869,0.00014519,2]
[335195873,1723971326374,154.71377951,0.00014519,2]
[335195874,1723971327734,664.09200604,0.00014519,2]
[335195875,1723971329108,253.72224647,0.00014519,2]
[335195876,1723971336637,162.830932,0.00014247,2]
[335195877,1723971356363,154.71377951,0.00014519,2]
[335195878,1723971396029,166.4,5.479e-05,2]
[335195879,1723971397527,154.80646411,0.00014519,2]
[335195882,1723971696037,166.4,5.479e-05,2]
[335195885,1723971738033,1110.60501038,0.00015,2]
[335195886,1723971812161,189.091586,0.00014247,2]
[335195887,1723971860151,662.854124,0.00014826,2]
[335195888,1723971889578,10000.0,0.00015001,2]
[335195889,1723971890985,446.8476032,0.00014944,2]
[335195890,1723971908634,10000.0,0.00015001,2]
[335195891,1723971928220,56750.78627208,0.000147,2]
[335195892,1723971942609,10000.0,0.00015001,2]
[335195893,1723971957508,24900.0,0.00014955,2]
[335195894,1723971971666,810.1149959,0.00014519,2]
[335195895,1723971973260,155.32296161,0.00014519,2]
[335195896,1723971984355,223.38199524,0.00014519,2]
[335195897,1723971984592,154.79103211,0.00014519,2]
[335195899,1723971991360,2721.20377616,0.00014519,2]
[335195900,1723971991665,422.1184028,0.00014519,2]
[335195901,1723971995632,166.4,5.479e-05,2]
[335195902,1723972012067,200.59987483,0.00014519,2]
[335195903,1723972025189,-1033.24375065,0.00015261,2]
[335195904,1723972033115,-649.01242741,0.00015261,2]
[335195905,1723972037084,-1071.67457274,0.00015261,2]
[335195906,1723972037106,-300.0,0.00015295,2]
[335195907,1723972037127,-300.0,0.00015295,2]
[335195908,1723972037148,-210.60567658,0.00015296,2]
[335195909,1723972045106,-209.98711442,0.00015296,2]
[335195910,1723972045129,-2378.61426059,0.00015296,2]
[335195911,1723972060320,10000.0,0.00015001,2]
[335195912,1723972078252,983.38610082,0.00014519,2]
[335195913,1723972155622,-1912.62954352,0.00015296,2]
[335195914,1723972160024,10000.0,0.00015001,2]
[335195915,1723972166120,-3298.62049859,0.00015296,2]
[335195916,1723972166142,-250.0,0.00015826,2]
[335195917,1723972166163,-250.0,0.0001587,2]
[335195918,1723972166184,-250.0,0.00015913,2]
[335195919,1723972166206,-250.0,0.00015956,2]
[335195920,1723972166228,-250.0,0.00016,2]
[335195921,1723972166249,-250.0,0.00016043,2]
[335195922,1723972166269,-608.9060757,0.00016081,2]
[335195923,1723972166291,-250.0,0.00016087,2]
[335195924,1723972172932,71.10693707,0.0001536,2]
[335195925,1723972174156,-139.18945793,0.0001536,2]
[335195926,1723972207743,105.81054207,0.00010959,2]
[335195927,1723972207782,58.58945793,0.00010959,2]
[335196107,1723972238410,-250.0,0.00015467,2]
[335196108,1723972238421,-250.0,0.00015509,2]
[335196109,1723972238432,-250.0,0.00015552,2]
[335196110,1723972238443,-250.0,0.00015594,2]
[335196111,1723972238453,-250.0,0.00015636,2]
[335196112,1723972238465,-250.0,0.00015679,2]
[335196113,1723972238475,-250.0,0.00015721,2]
[335196114,1723972238485,-250.0,0.00015764,2]
[335196115,1723972238495,-250.0,0.00015806,2]
[335196116,1723972238647,-250.0,0.00015849,2]
[335196117,1723972238657,-250.0,0.00015891,2]
[335196118,1723972238669,-250.0,0.00015933,2]
[335196119,1723972238679,-250.0,0.00015976,2]
[335196120,1723972238689,-250.0,0.00016018,2]
[335196121,1723972238702,-250.0,0.00016061,2]
[335196122,1723972238715,-250.0,0.00016103,2]
[335196123,1723972238726,-250.0,0.00016145,2]
[335196124,1723972238737,-250.0,0.00016188,2]
[335196125,1723972238747,-250.0,0.0001623,2]
[335196126,1723972238758,-250.0,0.00016273,2]
[335196127,1723972238769,-5039.87586555,0.00016338,2]
[335196128,1723972238780,-556.62647563,0.00016437,2]
[335196129,1723972238790,-300.0,0.00016437,2]
[335196130,1723972238802,-300.0,0.00016437,2]
[335196131,1723972238812,-500.0,0.00016438,2]
[335196132,1723972238823,-500.0,0.00016438,2]
[335196133,1723972238836,-27.60230283,0.00016438,2]
[335196134,1723972238854,-1150.31769717,0.00016438,2]
[335196135,1723972238865,-500.0,0.00016438,2]
[335196136,1723972238875,-1232.66,0.00016438,2]
[335196137,1723972238887,-1382.39,0.00016438,2]
[335196138,1723972238899,-500.0,0.00016438,2]
[335196139,1723972238910,-1150.83,0.00016438,2]
[335196140,1723972238919,-256.71266085,0.00016438,2]
[335196141,1723972238928,-759.23,0.00016438,2]
[335196142,1723972238942,-701.96746665,0.00016438,2]
[335196143,1723972238957,-4031.71253335,0.00016438,2]
[335196144,1723972238967,-500.0,0.00016438,2]
[335196145,1723972238977,-1343.44,0.00016438,2]
[335196146,1723972238989,-383.11512763,0.00016438,2]
[335196147,1723972239247,-174.67487237,0.00016438,2]
[335196148,1723972239257,-1110.9,0.00016438,2]
[335196149,1723972239268,-500.0,0.00016438,2]
[335196150,1723972239279,-500.0,0.00016438,2]
[335196151,1723972239290,-500.0,0.00016438,2]
[335196152,1723972239301,-525.36014816,0.00016438,2]
[335196153,1723972239313,-1346.94,0.00016438,2]
[335196154,1723972239324,-1824.26,0.00016438,2]
[335196155,1723972239336,-576.65,0.00016438,2]
[335196156,1723972239346,-500.0,0.00016438,2]
[335196157,1723972239357,-500.0,0.00016438,2]
[335196158,1723972239366,-500.0,0.00016438,2]
[335196159,1723972239376,-500.0,0.00016438,2]
[335196160,1723972239386,-500.0,0.00016438,2]
[335196161,1723972239395,-550.17,0.00016438,2]
[335196162,1723972239404,-500.0,0.00016438,2]
[335196163,1723972239415,-500.0,0.00016438,2]
[335196164,1723972239424,-1066.33,0.00016438,2]
[335196165,1723972239434,-500.0,0.00016438,2]
[335196166,1723972239443,-6489.01,0.00016438,2]
[335196167,1723972239453,-500.0,0.00016438,2]
[335196168,1723972239462,-976.12,0.00016438,2]
[335196169,1723972239472,-877.17,0.00016438,2]
[335196170,1723972239481,-500.0,0.00016438,2]
[335196171,1723972239490,-500.0,0.00016438,2]
[335196172,1723972239499,-644.58,0.00016438,2]
[335196173,1723972239508,-1110.33,0.00016438,2]
[335196174,1723972239518,-500.0,0.00016438,2]
[335196175,1723972239527,-500.0,0.00016438,2]
[335196176,1723972239536,-500.0,0.00016438,2]
[335196177,1723972239545,-500.0,0.00016438,2]
[335196178,1723972239554,-907.09,0.00016438,2]
[335196179,1723972239564,-500.0,0.00016438,2]
[335196180,1723972239573,-500.0,0.00016438,2]
[335196181,1723972239582,-724.89,0.00016438,2]
[335196182,1723972239591,-713.9,0.00016438,2]
[335196183,1723972239600,-500.0,0.00016438,2]
[335196184,1723972239610,-500.0,0.00016438,2]
[335196185,1723972239620,-716.69,0.00016438,2]
[335196186,1723972239629,-500.0,0.00016438,2]
[335196187,1723972239638,-482.46625134,0.00016438,2]
[335196188,1723972239648,-1868.57,0.00016438,2]
[335196189,1723972239657,-500.0,0.00016438,2]
[335196190,1723972239667,-500.0,0.00016438,2]
[335196191,1723972239676,-500.0,0.00016438,2]
[335196192,1723972239685,-500.0,0.00016438,2]
[335196193,1723972239695,-692.16,0.00016438,2]
[335196194,1723972239704,-820.93,0.00016438,2]
[335196195,1723972239713,-1308.34,0.00016438,2]
[335196196,1723972239722,-500.0,0.00016438,2]
[335196197,1723972239731,-500.0,0.0001671,2]
[335196198,1723972239741,-500.0,0.0001671,2]
[335196199,1723972239751,-500.0,0.0001671,2]
[335196200,1723972239760,-240.06673535,0.0001671,2]
[335196201,1723972239769,-500.0,0.0001671,2]
[335196202,1723972239779,-500.0,0.0001671,2]
[335196203,1723972239788,-500.0,0.0001671,2]
[335196204,1723972239798,-500.0,0.0001671,2]
[335196205,1723972239808,-500.0,0.0001671,2]
[335196206,1723972239818,-500.0,0.0001671,2]
[335196207,1723972239828,-500.0,0.0001671,2]
[335196208,1723972239837,-500.0,0.0001671,2]
[335196209,1723972239847,-500.0,0.0001671,2]
[335196210,1723972239857,-500.0,0.0001671,2]
[335196211,1723972239867,-500.0,0.0001671,2]
[335196212,1723972239877,-561.37,0.00016711,2]
[335196213,1723972239887,-505.55,0.00016711,2]
[335196214,1723972239896,-2416.37,0.00016711,2]
[335196215,1723972239905,-762.7,0.00016711,2]
[335196216,1723972239916,-756.06,0.00016711,2]
[335196217,1723972239926,-803.37,0.00016711,2]
[335196218,1723972239936,-815.41,0.00016711,2]
[335196219,1723972239945,-5244.23039316,0.00016711,2]
[335196220,1723972239955,-500.0,0.00016711,2]
[335196221,1723972239965,-5017.1,0.00016711,2]
[335196222,1723972239975,-500.0,0.00016712,2]
[335196223,1723972239985,-500.0,0.00016712,2]
[335196225,1723972239994,-1177.92,0.00016712,2]
[335196226,1723972240004,-500.0,0.00016712,2]
[335196227,1723972240014,-1232.66,0.00016712,2]
[335196228,1723972240023,-1382.39,0.00016712,2]
[335196229,1723972240033,-500.0,0.00016712,2]
[335196230,1723972240043,-1150.83,0.00016712,2]
[335196232,1723972240052,-759.23,0.00016712,2]
[335196233,1723972240062,-4733.68,0.00016712,2]
[335196235,1723972240072,-1343.44,0.00016712,2]
[335196237,1723972240082,-557.79,0.00016712,2]
[335196239,1723972240092,-1110.9,0.00016712,2]
[335196240,1723972240102,-500.0,0.00016712,2]
[335196241,1723972240111,-500.0,0.00016712,2]
[335196242,1723972240122,-500.0,0.00016712,2]
[335196243,1723972240134,-1346.94,0.00016712,2]
[335196244,1723972240144,-1824.26,0.00016712,2]
[335196245,1723972240155,-576.65,0.00016712,2]
[335196246,1723972240165,-500.0,0.00016712,2]
[335196247,1723972240175,-504.56767197,0.00016712,2]
[335196248,1723972240186,-502.95311286,0.00016712,2]
[335196249,1723972240197,-550.17,0.00016712,2]
[335196250,1723972240207,-500.0,0.00016712,2]
[335196251,1723972240217,-500.0,0.00016712,2]
[335196252,1723972240226,-1066.33,0.00016712,2]
[335196253,1723972240236,-500.0,0.00016712,2]
[335196254,1723972240245,-6489.01,0.00016712,2]
[335196255,1723972240255,-502.57367614,0.00016712,2]
[335196256,1723972240264,-976.12,0.00016712,2]
[335196258,1723972240274,-877.17,0.00016712,2]
[335196259,1723972240284,-500.0,0.00016712,2]
[335196260,1723972240294,-500.0,0.00016712,2]
[335196261,1723972240304,-644.58,0.00016712,2]
[335196262,1723972240314,-500.0,0.00016712,2]
[335196263,1723972240324,-1110.33,0.00016712,2]
[335196264,1723972240335,-500.0,0.00016712,2]
[335196265,1723972240346,-500.0,0.00016712,2]
[335196266,1723972240357,-907.09,0.00016712,2]
[335196267,1723972240368,-504.1198036,0.00016712,2]
[335196268,1723972240379,-500.0,0.00016712,2]
[335196270,1723972240389,-724.89,0.00016712,2]
[335196271,1723972240399,-713.9,0.00016712,2]
[335196272,1723972240410,-500.0,0.00016712,2]
[335196273,1723972240419,-500.0,0.00016712,2]
[335196274,1723972240429,-716.69,0.00016712,2]
[335196275,1723972240441,-500.0,0.00016712,2]
[335196277,1723972240450,-1868.57,0.00016712,2]
[335196279,1723972240459,-500.0,0.00016712,2]
[335196280,1723972240470,-500.0,0.00016712,2]
[335196282,1723972240479,-500.0,0.00016712,2]
[335196283,1723972240488,-692.16,0.00016712,2]
[335196284,1723972240499,-820.93,0.00016712,2]
[335196285,1723972240510,-1308.34,0.00016712,2]
[335196286,1723972240520,-500.0,0.00016712,2]
[335196287,1723972240531,-953.29878775,0.00016827,2]
[335196288,1723972240540,-46151.0739289,0.00016876,2]
[335196289,1723972240550,-14728.70324854,0.00016886,2]
[335196290,1723972240559,-153.0,0.00016932,2]
[335196292,1723972240569,-277.63683817,0.00016934,2]
[335196294,1723972240579,-155.14004745,0.00016936,2]
[335196296,1723972240589,-14728.7032485,0.00016955,2]
[335196297,1723972240599,-46151.0739289,0.00016976,2]
[335196298,1723972240609,-561.37,0.00016985,2]
[335196299,1723972240619,-505.55,0.00016985,2]
[335196301,1723972240629,-2416.37,0.00016985,2]
[335196302,1723972240639,-762.7,0.00016985,2]
[335196303,1723972240648,-756.06,0.00016985,2]
[335196304,1723972240658,-803.37,0.00016985,2]
[335196305,1723972240676,-815.41,0.00016985,2]
[335196306,1723972240686,-500.0,0.00016985,2]
[335196307,1723972240696,-5017.1,0.00016985,2]
[335196308,1723972240705,-500.0,0.00016986,2]
[335196309,1723972240715,-500.0,0.00016986,2]
[335196310,1723972240725,-1177.92,0.00016986,2]
[335196311,1723972240734,-500.0,0.00016986,2]
[335196312,1723972240744,-1232.66,0.00016986,2]
[335196313,1723972240754,-1382.39,0.00016986,2]
[335196314,1723972240764,-500.0,0.00016986,2]
[335196315,1723972240774,-1150.83,0.00016986,2]
[335196316,1723972240784,-759.23,0.00016986,2]
[335196317,1723972240794,-4733.68,0.00016986,2]
[335196318,1723972240803,-1343.44,0.00016986,2]
[335196319,1723972240813,-557.79,0.00016986,2]
[335196320,1723972240823,-1110.9,0.00016986,2]
[335196321,1723972240833,-500.0,0.00016986,2]
[335196322,1723972240950,-500.0,0.00016986,2]
[335196323,1723972240960,-500.0,0.00016986,2]
[335196324,1723972240970,-1346.94,0.00016986,2]
[335196325,1723972240979,-1824.26,0.00016986,2]
[335196326,1723972240989,-576.65,0.00016986,2]
[335196327,1723972240998,-500.0,0.00016986,2]
[335196328,1723972241008,-550.17,0.00016986,2]
[335196329,1723972241017,-500.0,0.00016986,2]
[335196330,1723972241026,-500.0,0.00016986,2]
[335196331,1723972241036,-1066.33,0.00016986,2]
[335196332,1723972241046,-500.0,0.00016986,2]
[335196333,1723972241055,-6489.01,0.00016986,2]
[335196334,1723972241065,-976.12,0.00016986,2]
[335196335,1723972241074,-877.17,0.00016986,2]
[335196336,1723972241084,-500.0,0.00016986,2]
[335196337,1723972241094,-514.77663133,0.00016986,2]
[335196338,1723972241103,-644.58,0.00016986,2]
[335196339,1723972241112,-500.0,0.00016986,2]
[335196340,1723972241126,-1110.33,0.00016986,2]
[335196341,1723972241136,-500.0,0.00016986,2]
[335196342,1723972241145,-500.0,0.00016986,2]
[335196343,1723972241155,-907.09,0.00016986,2]
[335196344,1723972241164,-500.0,0.00016986,2]
[335196345,1723972241175,-724.89,0.00016986,2]
[335196346,1723972241185,-713.9,0.00016986,2]
[335196347,1723972241194,-500.0,0.00016986,2]
[335196348,1723972241206,-500.0,0.00016986,2]
[335196349,1723972241217,-716.69,0.00016986,2]
[335196350,1723972241227,-500.0,0.00016986,2]
[335196351,1723972241239,-1868.57,0.00016986,2]
[335196352,1723972241250,-500.0,0.00016986,2]
[335196353,1723972241260,-500.0,0.00016986,2]
[335196354,1723972241271,-500.0,0.00016986,2]
[335196355,1723972241281,-692.16,0.00016986,2]
[335196356,1723972241291,-820.93,0.00016986,2]
[335196357,1723972241302,-1308.34,0.00016986,2]
[335196358,1723972241312,-500.0,0.00016986,2]
[335196359,1723972241321,-325.709136,0.00016986,2]
[335196360,1723972241333,-150.112233,0.00017,2]
[335196361,1723972241343,-158.036927,0.00017,2]
[335196362,1723972241352,-14728.7032485,0.00017023,2]
[335196363,1723972241362,-5017.1,0.00017062,2]
[335196364,1723972241372,-138453.221787,0.00017063,2]
[335196365,1723972241384,-5017.1,0.00017072,2]
[335196366,1723972241395,-5017.1,0.00017072,2]
[335196367,1723972241405,-5017.1,0.00017072,2]
[335196368,1723972241416,-537.42185925,0.00017073,2]
[335196369,1723972241425,-500.0,0.00017073,2]
[335196370,1723972241436,-500.0,0.00017073,2]
[335196371,1723972241446,-500.0,0.00017073,2]
[335196372,1723972241457,-500.0,0.00017073,2]
[335196373,1723972241468,-500.0,0.00017073,2]
[335196374,1723972241479,-167.27726661,0.00017073,2]
[335196375,1723972241489,-500.0,0.00017073,2]
[335196376,1723972241498,-500.0,0.00017073,2]
[335196377,1723972241508,-500.0,0.00017073,2]
[335196378,1723972241517,-500.0,0.00017073,2]
[335196379,1723972241526,-500.0,0.00017073,2]
[335196380,1723972241536,-500.0,0.00017073,2]
[335196381,1723972241545,-500.0,0.00017073,2]
[335196382,1723972241554,-1111.31,0.00017073,2]
[335196383,1723972241563,-627.69,0.00017073,2]
[335196384,1723972241573,-500.0,0.00017073,2]
[335196385,1723972241582,-500.0,0.00017073,2]
[335196386,1723972241591,-500.0,0.00017073,2]
[335196387,1723972241600,-500.0,0.00017073,2]
[335196388,1723972241609,-500.0,0.00017073,2]
[335196389,1723972241618,-500.0,0.00017073,2]
[335196390,1723972241628,-500.0,0.00017073,2]
[335196391,1723972241637,-500.0,0.00017073,2]
[335196392,1723972241647,-500.0,0.00017073,2]
[335196393,1723972241656,-500.0,0.00017073,2]
[335196394,1723972241665,-550.63,0.00017073,2]
[335196395,1723972241675,-514.17707633,0.00017073,2]
[335196396,1723972241684,-500.0,0.00017073,2]
[335196397,1723972241693,-500.0,0.00017073,2]
[335196398,1723972241702,-500.0,0.00017073,2]
[335196399,1723972241711,-506.76095318,0.00017073,2]
[335196400,1723972241720,-500.0,0.00017073,2]
[335196401,1723972241730,-500.0,0.00017073,2]
[335196402,1723972241739,-500.0,0.00017073,2]
[335196403,1723972241748,-509.09326815,0.00017073,2]
[335196404,1723972241758,-500.0,0.00017073,2]
[335196405,1723972241767,-645.52102326,0.00017073,2]
[335196406,1723972241777,-571.18,0.00017073,2]
[335196407,1723972241787,-448.51956165,0.00017073,2]
[335196408,1723972241798,-200.0,0.00017073,2]
[335196409,1723972241808,-1361.83,0.00017073,2]
[335196410,1723972241819,-500.0,0.00017073,2]
[335196411,1723972241830,-657.62,0.00017073,2]
[335196412,1723972241839,-500.0,0.00017073,2]
[335196413,1723972241852,-500.0,0.00017073,2]
[335196414,1723972241863,-500.0,0.00017073,2]
[335196415,1723972241873,-709.41,0.00017073,2]
[335196416,1723972241883,-500.0,0.00017073,2]
[335196417,1723972241893,-500.0,0.00017073,2]
[335196418,1723972241902,-552.58696288,0.00017073,2]
[335196419,1723972241912,-690.3,0.00017073,2]
[335196420,1723972241922,-779.41,0.00017073,2]
[335196421,1723972241931,-500.0,0.00017073,2]
[335196422,1723972241940,-500.0,0.00017073,2]
[335196423,1723972241949,-781.51,0.00017073,2]
[335196424,1723972241959,-570.91,0.00017073,2]
[335196425,1723972241968,-1114.52,0.00017073,2]